bitfinex-derivatives/quotes_SOLF0:USTF0_20260108
["timestamp","ask_amount","ask_price","bid_price","bid_amount"]
[1767908060775,1.61884291,138.23,138.14,103.23322197]
[1767908061175,1.61884291,138.23,138.17,6.5198]
[1767908077276,8.13624291,138.23,138.17,6.5198]
[1767908077988,0.04846864,138.21,138.17,6.5198]
[1767908079689,0.04846864,138.21,138.14,110.31493617]
[1767908082596,0.04846864,138.21,138.17,6.5198]
[1767908088388,0.04846864,138.21,138.18,6.5194]
[1767908092499,1.61364205,138.24,138.18,6.5194]
[1767908092695,1.61364205,138.24,138.18,6.57366563]
[1767908095016,1.61364205,138.28,138.2,6.5187]
[1767908095207,1.61364205,138.27,138.18,0.05426563]
[1767908095403,1.61364205,138.27,138.16,110.29623617]
[1767908095604,8.13004205,138.25,138.18,6.5193]
[1767908095913,8.13004205,138.25,138.21,0.0542682]
[1767908098916,1.61364205,138.25,138.21,0.0542682]
[1767908100218,1.61364205,138.25,138.17,15.38753617]
[1767908100419,1.66360944,138.24,138.17,15.38753617]
[1767908101711,8.18050944,138.24,138.17,15.38753617]
[1767908103619,8.18050944,138.24,138.18,6.5196]
[1767908104014,8.18050944,138.24,138.19,6.68591364]
[1767908111322,1.66360944,138.24,138.19,13.20501364]
[1767908111524,0.04996739,138.24,138.18,101.4175]
[1767908112026,0.04996739,138.24,138.2,6.5184]
[1767908112715,0.04996739,138.24,138.21,6.518]
[1767908113024,101.2897,138.36,138.23,101.3805]
[1767908113025,1.57379904,138.32,138.23,101.3805]
[1767908113224,1.57379904,138.32,138.25,6.516]
[1767908113425,1.57379904,138.32,138.23,101.3805]
[1767908114024,1.57379904,138.32,138.25,101.3626]
[1767908115431,1.57379904,138.32,138.28,6.5147]
[1767908124638,1.57379904,138.32,138.26,6.5156]
[1767908126540,1.57379904,138.32,138.27,6.5154]
[1767908128238,1.57379904,138.34,138.25,101.3625]
[1767908129538,1.57379904,138.34,138.28,6.5147]
[1767908129743,1.57379904,138.37,138.26,101.3564]
[1767908130044,87.07379904,138.36,138.26,101.3564]
[1767908130244,1.57379904,138.35,138.26,101.3564]
[1767908130545,1.57379904,138.35,138.3,6.514]
[1767908131342,1.57379904,138.32,138.23,101.381]
[1767908131544,1.57379904,138.32,138.22,101.3874]
[1767908132045,1.57379904,138.32,138.25,6.5159]
[1767908132648,1.57379904,138.32,138.26,6.5159]
[1767908134253,1.57379904,138.32,138.27,6.5155]
[1767908140244,1.57379904,138.32,138.25,6.5159]
[1767908140953,3.43025754,138.34,138.27,6.5154]
[1767908141254,87.14269583,138.34,138.27,6.5154]
[1767908141851,87.14269583,138.34,138.28,6.515]
[1767908142650,1.78756171,138.34,138.26,101.3563]
[1767908143254,1.64269583,138.35,138.3,6.514]
[1767908144855,1.64269583,138.35,138.28,6.5145]
[1767908145054,1.64269583,138.35,138.26,103.14386171]
[1767908145457,1.64269583,138.35,138.29,6.5144]
[1767908146946,6.5112,138.36,138.29,6.5144]
[1767908147153,1.64269583,138.41,138.32,1.78756171]
[1767908147759,1.64269583,138.4,138.33,6.5125]
[1767908149950,8.15209583,138.4,138.33,6.5125]
[1767908151464,8.15209583,138.4,138.31,6.5132]
[1767908151851,8.15209583,138.4,138.3,1.78756171]
[1767908152555,8.15209583,138.4,138.32,6.5131]
[1767908152760,1.64269583,138.38,138.3,1.78756171]
[1767908153562,1.64269583,138.38,138.3,8.30126171]
[1767908153762,1.64269583,138.37,138.3,6.5137]
[1767908154961,8.15259583,138.39,138.31,6.5135]
[1767908155462,1.64269583,138.37,138.29,6.5142]
[1767908156062,1.64269583,138.35,138.26,8.47347535]
[1767908156660,1.64269583,138.35,138.26,6.68591364]
[1767908156868,1.64269583,138.35,138.26,8.47347535]
[1767908157166,1.64269583,138.35,138.27,6.68591364]
[1767908157668,8.15449583,138.35,138.28,6.5149]
[1767908161366,101.2674,138.39,138.28,103.12606171]
[1767908161367,3.43025754,138.39,138.28,103.12606171]
[1767908161571,1.64269583,138.39,138.3,1.78756171]
[1767908162568,1.56072924,138.38,138.3,1.78756171]
[1767908162774,1.56072924,138.37,138.28,8.47347535]
[1767908163365,1.56072924,138.37,138.28,6.68591364]
[1767908163561,8.07162924,138.37,138.31,0.05197557]
[1767908165976,0.04904475,138.35,138.31,0.05197557]
[1767908176793,0.04904475,138.35,138.31,6.56557557]
[1767908179701,0.04904475,138.35,138.31,0.05197557]
[1767908181699,1.57858709,138.35,138.31,0.05197557]
[1767908183606,1.57858709,138.35,138.29,13.20041364]
[1767908184408,1.57858709,138.35,138.3,6.68591364]
[1767908184703,0.04904475,138.35,138.31,1.78756171]
[1767908184904,1.52954234,138.38,138.31,8.47347535]
[1767908185096,1.52954234,138.38,138.33,6.5126]
[1767908185303,1.52954234,138.4,138.33,1.78756171]
[1767908185604,1.52954234,138.41,138.33,1.78756171]
[1767908185806,12.69633736,138.47,138.37,1.78756171]
[1767908186104,1.52954234,138.46,138.37,8.47347535]
[1767908186299,1.52954234,138.46,138.39,6.5097]
[1767908186695,1.52954234,138.46,138.39,1.78756171]
[1767908187206,8.03624234,138.46,138.38,6.5099]
[1767908187708,1.52954234,138.46,138.38,6.5099]
[1767908187907,98.15633736,138.47,138.39,1.78756171]
[1767908188609,98.15633736,138.47,138.4,6.5093]
[1767908188911,12.69633736,138.47,138.41,1.78756171]
[1767908189213,12.69633736,138.47,138.41,8.29626171]
[1767908191305,7.00541402,138.47,138.43,1.78756171]
[1767908191510,6.8902376,138.47,138.43,1.78756171]
[1767908191708,6.8902376,138.47,138.43,8.29536171]
[1767908192310,8.03294234,138.53,138.45,1.78756171]
[1767908193718,6.5024,138.55,138.47,1.78756171]
[1767908194801,1.48210257,138.59,138.51,1.78756171]
[1767908195814,7.98270257,138.59,138.51,1.78756171]
[1767908196018,1.48210257,138.58,138.48,85.42]
[1767908196316,6.5021,138.56,138.48,85.42]
[1767908196517,186.5203,138.62,138.49,2.78264881]
[1767908196518,1.48210257,138.6,138.49,2.78264881]
[1767908197708,1.48210257,138.58,138.47,2.78264881]
[1767908198009,1.48210257,138.58,138.47,88.18264881]
[1767908198414,6.5016,138.57,138.48,6.5053]
[1767908200011,7.98410257,138.56,138.46,6.5062]
[1767908201609,7.98460257,138.55,138.46,6.5062]
[1767908202111,1.48210257,138.53,138.44,91.9073]
[1767908203617,7.98550257,138.53,138.44,91.9073]
[1767908205119,6.5025,138.55,138.45,104.00304881]
[1767908205418,1.48210257,138.56,138.45,104.00304881]
[1767908205819,6.5015,138.57,138.49,6.505]
[1767908207924,1.48210257,138.59,138.49,2.78264881]
[1767908208124,1.48210257,138.59,138.49,88.14264881]
[1767908208712,1.48210257,138.59,138.51,6.504]
[1767908210125,1.48210257,138.58,138.49,91.8648]
[1767908210627,1.48210257,138.58,138.49,88.14264881]
[1767908211221,1.48210257,138.58,138.52,6.5036]
[1767908211616,6.5003,138.6,138.52,6.5036]
[1767908211826,1.48210257,138.63,138.52,101.1659]
[1767908212226,6.4978,138.65,138.55,101.1475]
[1767908212530,6.4978,138.65,138.54,186.5119]
[1767908213226,7.97990257,138.65,138.54,186.5119]
[1767908213530,7.97990257,138.65,138.57,6.5013]
[1767908214327,1.48210257,138.65,138.56,101.1401]
[1767908215122,1.48210257,138.69,138.59,101.1168]
[1767908215319,1.48210257,138.69,138.59,85.34]
[1767908215525,7.97800257,138.69,138.61,6.4993]
[1767908215827,7.97800257,138.69,138.59,85.34]
[1767908215828,1.48210257,138.69,138.59,85.34]
[1767908216519,7.97850257,138.68,138.59,91.8402]
[1767908217628,1.48210257,138.67,138.59,85.34]
[1767908218433,1.48210257,138.7,138.59,85.34]
[1767908219027,6.4958,138.69,138.59,91.8401]
[1767908219823,6.4963,138.68,138.59,91.8401]
[1767908224236,7.90687183,138.67,138.59,91.8401]
[1767908224530,1.41007183,138.67,138.59,85.34]
[1767908225533,7.90727183,138.66,138.59,85.34]
[1767908225839,1.41007183,138.65,138.59,85.34]
[1767908226030,1.41007183,138.65,138.56,85.3]
[1767908226229,7.93790592,138.64,138.56,85.3]
[1767908226428,1.43970592,138.64,138.53,2.78264881]
[1767908226736,1.43970592,138.64,138.53,88.08264881]
[1767908227638,7.93840592,138.63,138.54,6.5025]
[1767908228645,6.4991,138.62,138.54,6.5025]
[1767908229332,1.43970592,138.63,138.54,6.5025]
[1767908229728,1.43970592,138.63,138.55,6.5022]
[1767908232139,1.43970592,138.59,138.5,101.1834]
[1767908233541,1.43970592,138.59,138.53,6.5031]
[1767908236037,6.4985,138.64,138.56,6.5017]
[1767908236238,1.43970592,138.65,138.55,103.92884881]
[1767908236946,1.43970592,138.68,138.57,103.91494881]
[1767908237747,1.43970592,138.68,138.58,186.4214]
[1767908237947,1.43970592,138.71,138.6,101.111]
[1767908238146,1.43970592,138.71,138.58,186.4214]
[1767908238347,1.43970592,138.7,138.58,186.4214]
[1767908238736,1.43970592,138.7,138.61,101.1018]
[1767908238940,1.43970592,138.73,138.61,103.88444881]
[1767908239446,1.43970592,138.73,138.64,6.4979]
[1767908240156,7.93420592,138.72,138.62,6.4987]
[1767908240555,1.43970592,138.71,138.62,6.4987]
[1767908240747,7.93510592,138.7,138.61,6.4994]
[1767908240949,1.43970592,138.69,138.61,6.4994]
[1767908241952,1.43970592,138.71,138.6,101.1094]
[1767908242451,1.43970592,138.71,138.59,101.1149]
[1767908242850,7.93510592,138.7,138.61,6.4991]
[1767908243257,1.43970592,138.73,138.6,101.1103]
[1767908244558,7.93430592,138.72,138.63,6.4984]
[1767908245358,6.4937,138.74,138.63,101.089]
[1767908245549,6.4937,138.74,138.63,186.369]
[1767908245750,1.43970592,138.75,138.66,6.4971]
[1767908247654,7.93280592,138.75,138.66,6.4971]
[1767908249256,6.4935,138.74,138.66,6.4971]
[1767908249457,7.93320592,138.74,138.66,6.4971]
[1767908251856,1.43970592,138.74,138.67,6.4966]
[1767908252666,1.43970592,138.74,138.65,6.4972]
[1767908253068,6.4945,138.72,138.63,91.7782]
[1767908253368,7.94953144,138.72,138.63,91.7782]
[1767908253571,1.45503144,138.72,138.63,91.7782]
[1767908254668,6.4949,138.71,138.63,91.7782]
[1767908255059,6.4949,138.71,138.64,6.498]
[1767908255060,7.94993144,138.71,138.64,6.498]
[1767908256077,6.4942,138.73,138.66,6.4969]
[1767908256760,7.94923144,138.73,138.66,6.4969]
[1767908257564,1.45503144,138.72,138.66,6.4969]
[1767908257961,7.94953144,138.72,138.63,85.28]
[1767908259659,1.45503144,138.71,138.63,85.28]
[1767908259857,1.45503144,138.7,138.61,85.26]
[1767908260574,7.95033144,138.7,138.63,6.4983]
[1767908260775,1.45503144,138.68,138.59,8.27717275]
[1767908261582,0.05408815,138.65,138.61,6.4994]
[1767908261875,0.05408815,138.65,138.57,192.88989642]
[1767908262261,0.05408815,138.65,138.6,6.4997]
[1767908262862,0.05408815,138.65,138.61,0.05223301]
[1767908263473,1.77777633,138.7,138.61,0.05223301]
[1767908263876,9.72820777,138.7,138.63,6.4984]
[1767908264377,3.23280777,138.7,138.59,109.39277275]
[1767908264578,1.45503144,138.7,138.59,107.61499642]
[1767908264876,1.45503144,138.7,138.65,0.05373829]
[1767908270282,1.50842657,138.69,138.61,6.499]
[1767908270674,1.45503144,138.69,138.61,6.499]
[1767908271076,7.95133144,138.68,138.61,6.499]
[1767908271677,0.05448521,138.66,138.61,6.499]
[1767908274082,0.05448521,138.66,138.57,94.12783617]
[1767908274083,1.45503144,138.65,138.57,3.60654014]
[1767908274278,1.45503144,138.64,138.51,8.86783617]
[1767908274483,1.45503144,138.64,138.48,105.95926143]
[1767908274484,1.45503144,138.62,138.48,195.32423617]
[1767908274876,1.50703238,138.59,138.49,101.1912]
[1767908275279,1.45503144,138.59,138.49,101.1912]
[1767908275681,0.05547948,138.55,138.49,101.1912]
[1767908276074,1.45503144,138.59,138.49,101.1912]
[1767908276285,1.45503144,138.59,138.52,6.5034]
[1767908277373,1.45503144,138.59,138.54,0.04652838]
[1767908277981,7.95563144,138.59,138.54,0.04652838]
[1767908278183,1.45503144,138.58,138.54,0.04652838]
[1767908280390,1.45503144,138.58,138.51,6.5041]
[1767908280683,1.50392545,138.57,138.51,6.5041]
[1767908282986,1.50392545,138.57,138.49,6.5047]
[1767908283189,1.50392545,138.57,138.48,85.26]
[1767908283493,1.45503144,138.57,138.46,101.2101]
[1767908283876,0.04599852,138.54,138.46,101.2101]
[1767908284679,0.04599852,138.54,138.49,6.5049]
[1767908285374,0.04599852,138.54,138.47,6.5057]
[1767908285589,0.04599852,138.54,138.44,191.28776143]
[1767908285781,1.53107745,138.55,138.44,191.28776143]
[1767908286087,1.53107745,138.55,138.44,186.5249]
[1767908286289,0.04686681,138.5,138.44,186.5249]
[1767908286477,0.04686681,138.5,138.46,1.78175372]
[1767908286680,1.78175372,138.57,138.48,1.78175372]
[1767908286880,88.59434371,138.57,138.48,1.78175372]
[1767908287075,1.51258999,138.56,138.46,1.82820306]
[1767908287292,1.51258999,138.55,138.46,1.78175372]
[1767908288086,8.01508999,138.55,138.49,0.04800913]
[1767908289287,1.51258999,138.54,138.49,0.04800913]
[1767908293084,1.51258999,138.54,138.49,6.55300913]
[1767908295280,1.51258999,138.54,138.49,0.04800913]
[1767908296591,8.01538999,138.54,138.49,0.04800913]
[1767908296791,1.51258999,138.53,138.49,0.04800913]
[1767908299389,1.51258999,138.53,138.5,6.5046]
[1767908302689,1.51258999,138.53,138.49,0.04800913]
[1767908302983,1.51258999,138.53,138.49,6.55310913]
[1767908304892,1.51258999,138.53,138.47,6.5057]
[1767908305091,1.51258999,138.53,138.42,114.2556]
[1767908305292,1.51258999,138.53,138.45,101.2203]
[1767908306195,1.51258999,138.53,138.48,6.5054]
[1767908306495,0.04816301,138.5,138.48,6.5054]
[1767908306692,1.51258999,138.53,138.49,0.0512819]
[1767908308500,1.51258999,138.53,138.49,6.5561819]
[1767908310897,8.01528999,138.55,138.49,6.5561819]
[1767908311097,101.1225,138.59,138.49,0.0512819]
[1767908311098,1.51258999,138.59,138.49,0.0512819]
[1767908311302,1.51258999,138.57,138.49,0.0512819]
[1767908311599,1.51258999,138.57,138.46,101.2094]
[1767908312001,1.51258999,138.57,138.52,0.0483836]
[1767908312504,8.01398999,138.57,138.52,0.0483836]
[1767908315303,1.42761215,138.56,138.52,0.0483836]
[1767908316202,1.47432776,138.55,138.48,6.5052]
[1767908316695,1.42761215,138.55,138.48,6.5052]
[1767908317291,1.42761215,138.55,138.49,6.5044]
[1767908317494,0.05369712,138.53,138.49,6.5044]
[1767908318501,6.5,138.59,138.51,2.78372065]
[1767908318701,1.42761215,138.59,138.51,2.78372065]
[1767908319094,1.42761215,138.62,138.51,4.22372065]
[1767908319301,1.42761215,138.62,138.55,2.78372065]
[1767908319805,1.42761215,138.62,138.57,0.05295619]
[1767908321610,0.05311248,138.61,138.57,0.05295619]
[1767908323104,0.05311248,138.61,138.57,6.55355619]
[1767908324106,1.42761215,138.65,138.57,1.49295619]
[1767908324412,1.42761215,138.65,138.57,2.83667684]
[1767908324598,1.42761215,138.65,138.57,2.78372065]
[1767908325208,1.42761215,138.67,138.58,101.1147]
[1767908325402,1.42761215,138.69,138.61,2.78372065]
[1767908325606,1.42761215,138.69,138.61,103.87442065]
[1767908325806,1.42761215,138.69,138.64,6.4973]
[1767908326405,7.92141215,138.72,138.64,6.4973]
[1767908326610,1.42761215,138.71,138.64,6.4973]
[1767908327211,1.42761215,138.71,138.61,9.28222065]
[1767908329110,277.0329,138.84,138.73,303.0077]
[1767908329410,444.0,138.95,138.73,303.0077]
[1767908329411,2.78372065,138.95,138.82,100.9386]
[1767908329617,15.7557129,138.97,138.85,100.9183]
[1767908329816,15.7557129,138.97,138.84,100.9258]
[1767908330120,2.78372065,138.96,138.84,100.9219]
[1767908330414,2.78372065,138.96,138.82,100.9397]
[1767908330415,85.3,138.95,138.82,100.9397]
[1767908331211,1.42761215,138.94,138.82,100.9397]
[1767908331407,1.42761215,138.94,138.81,103.72882065]
[1767908332316,1.42761215,138.92,138.81,103.72882065]
[1767908332514,100.8493,138.95,138.83,107.4211]
[1767908332515,1.42761215,138.95,138.83,107.4211]
[1767908332712,85.26,138.94,138.83,107.4211]
[1767908332917,85.26,138.94,138.85,0.05263723]
[1767908333516,86.68761215,138.94,138.83,6.4884]
[1767908333717,86.68761215,138.94,138.88,0.04854505]
[1767908334309,86.68761215,138.94,138.8,100.9495]
[1767908334310,1.42761215,138.93,138.8,107.4391]
[1767908334509,1.42761215,138.93,138.81,100.9476]
[1767908334911,1.42761215,138.93,138.81,122.9476]
[1767908335111,1.42761215,138.93,138.83,6.4882]
[1767908335513,1.42761215,138.93,138.83,107.4215]
[1767908335719,1.42761215,138.93,138.87,0.05248354]
[1767908335915,85.22,138.92,138.87,0.05248354]
[1767908336122,1.42761215,138.93,138.87,0.05248354]
[1767908336423,85.22,138.92,138.87,0.05248354]
[1767908337627,85.2,138.91,138.87,0.05248354]
[1767908338309,85.2,138.9,138.87,0.05248354]
[1767908339523,85.18,138.89,138.83,22.0]
[1767908339724,85.18,138.89,138.81,28.4891]
[1767908340022,85.18,138.89,138.81,129.4368]
[1767908340219,85.18,138.89,138.82,6.4887]
[1767908340725,1.42761215,138.93,138.83,6.4882]
[1767908340925,85.18,138.92,138.83,6.4882]
[1767908341121,0.0477956,138.87,138.82,22.0]
[1767908341328,85.2277956,138.87,138.8,122.9495]
[1767908341722,0.0477956,138.87,138.82,6.4887]
[1767908341923,32.63912891,138.86,138.82,6.4887]
[1767908342122,8.097e-05,138.86,138.82,6.4887]
[1767908342425,85.2277956,138.87,138.82,6.4887]
[1767908342626,85.2277956,138.87,138.82,7.9287]
[1767908342814,1.42761215,138.92,138.83,0.04539198]
[1767908343222,1.42761215,138.92,138.82,6.4887]
[1767908343424,85.16,138.91,138.82,6.4887]
[1767908344125,86.74717825,138.91,138.85,0.04735884]
[1767908344830,1.58717825,138.9,138.75,100.9906]
[1767908345026,1.58717825,138.9,138.79,100.9609]
[1767908345219,85.16,138.89,138.79,100.9609]
[1767908345526,85.16,138.89,138.8,6.4895]
[1767908346329,86.74418997,138.89,138.8,6.4895]
[1767908347124,0.04654853,138.86,138.81,6.4893]
[1767908347719,85.20654853,138.86,138.81,6.4893]
[1767908350231,85.14,138.85,138.81,6.4893]
[1767908350927,0.04654853,138.86,138.81,6.4893]
[1767908351134,85.14,138.85,138.81,6.4893]
[1767908351337,0.04654853,138.86,138.81,6.4893]
[1767908352026,85.14,138.85,138.81,6.4893]
[1767908352533,0.04654853,138.86,138.81,6.4893]
[1767908353025,0.04654853,138.86,138.79,6.4901]
[1767908353332,0.04654853,138.86,138.78,100.9693]
[1767908353535,85.14,138.85,138.78,100.9693]
[1767908354424,1.58418997,138.87,138.78,100.9693]
[1767908354620,1.58418997,138.87,138.8,6.4897]
[1767908354933,106.72784304,139.81,138.83,103.70348787]
[1767908354934,1.58418997,138.93,138.83,103.70348787]
[1767908355124,1.58418997,138.93,138.84,100.924]
[1767908355325,85.14,138.92,138.84,100.924]
[1767908355527,0.04911765,138.89,138.84,100.924]
[1767908355928,0.00175881,138.89,138.86,6.487]
[1767908357336,0.00175881,138.89,138.86,0.05278687]
[1767908358228,0.00175881,138.89,138.86,6.53978687]
[1767908366436,0.00175881,138.89,138.87,6.4866]
[1767908367536,0.00175881,138.89,138.86,0.05278687]
[1767908368643,0.00175881,138.89,138.86,6.53988687]
[1767908370634,0.00175881,138.89,138.86,0.05278687]
[1767908371043,0.00175881,138.89,138.86,6.53988687]
[1767908372141,0.00175881,138.89,138.86,0.05278687]
[1767908373236,0.00175881,138.89,138.86,6.51362551]
[1767908374338,0.00175881,138.89,138.87,6.46083864]
[1767908374645,0.00175881,138.89,138.87,12.94743864]
[1767908377247,0.00175881,138.89,138.87,6.4866]
[1767908377741,0.00175881,138.89,138.86,6.53988687]
[1767908379446,0.00175881,138.89,138.87,6.4867]
[1767908381642,0.00175881,138.89,138.86,0.05278687]
[1767908382343,0.00175881,138.89,138.86,6.51362551]
[1767908382548,0.00175881,138.89,138.86,13.00072551]
[1767908383141,1.60933097,138.89,138.85,0.08162153]
[1767908383343,1.60933097,138.89,138.83,22.08162153]
[1767908383548,1.60933097,138.89,138.83,0.08162153]
[1767908383745,3.37942082,138.88,138.82,6.489]
[1767908384149,85.12,138.87,138.82,6.489]
[1767908384949,0.05241408,138.86,138.83,6.4885]
[1767908385753,3.37942082,138.85,138.76,8.73018078]
[1767908385942,1.77184866,138.83,138.75,100.9846]
[1767908386146,1.77184866,138.83,138.73,124.49052944]
[1767908386457,85.12,138.82,138.73,124.49052944]
[1767908387149,85.12,138.82,138.77,6.4911]
[1767908388358,85.12,138.83,138.76,100.9835]
[1767908388861,3.37942082,138.85,138.76,100.9835]
[1767908389056,3.37942082,138.85,138.78,6.4906]
[1767908389257,85.12,138.84,138.78,6.4906]
[1767908389941,85.12,138.83,138.78,6.4906]
[1767908391855,3.37942082,138.85,138.78,6.4906]
[1767908392154,85.12,138.84,138.78,6.4906]
[1767908392357,85.12,138.84,138.79,6.4903]
[1767908393858,3.37942082,138.85,138.79,6.4903]
[1767908394154,85.14,138.83,138.79,6.4903]
[1767908395059,3.37942082,138.85,138.79,6.4903]
[1767908395260,85.14,138.83,138.79,6.4903]
[1767908395858,3.37942082,138.85,138.79,6.4903]
[1767908396059,85.14,138.83,138.79,6.4903]
[1767908398558,1.77184866,138.83,138.79,6.4903]
[1767908398754,85.14,138.82,138.79,6.4903]
[1767908400157,85.14,138.82,138.73,109.73238078]
[1767908400158,1.60757216,138.81,138.77,6.491]
[1767908400469,3.37942082,138.79,138.71,101.0141]
[1767908400658,38.9257,138.78,138.73,0.77575586]
[1767908400860,5.61672018,138.78,138.73,0.77575586]
[1767908401164,0.05467699,138.76,138.73,0.77575586]
[1767908401968,0.05467699,138.76,138.75,6.492]
[1767908402764,0.05467699,138.76,138.73,7.26865586]
[1767908402960,0.05467699,138.76,138.73,0.77575586]
[1767908404669,0.05467699,138.76,138.7,0.84312267]
[1767908404876,0.05467699,138.76,138.7,22.84312267]
[1767908405370,0.05467699,138.76,138.72,0.05103294]
[1767908406069,3.49053208,138.74,138.67,0.86791462]
[1767908406265,0.05467699,138.76,138.68,101.0414]
[1767908406567,1.77184866,138.77,138.69,1.84749368]
[1767908406866,1.77184866,138.77,138.71,6.4941]
[1767908407057,1.77184866,138.77,138.69,1.84749368]
[1767908407371,0.04956412,138.75,138.69,1.84749368]
[1767908407663,0.04956412,138.75,138.7,6.4945]
[1767908410056,1.82141278,138.75,138.7,6.4945]
[1767908414767,1.85181662,138.8,138.72,1.84749368]
[1767908415161,1.85181662,138.8,138.72,3.61934234]
[1767908415364,1.85181662,138.8,138.73,1.84749368]
[1767908415964,0.04592014,138.78,138.73,1.84749368]
[1767908416370,1.77184866,138.75,138.69,85.2]
[1767908416574,3.62366528,138.75,138.68,1.84749368]
[1767908416969,3.62366528,138.75,138.71,6.4941]
[1767908417172,0.05279994,138.73,138.71,6.4941]
[1767908419381,0.05279994,138.73,138.68,1.84749368]
[1767908420268,0.05279994,138.73,138.69,1.84749368]
[1767908420674,0.05279994,138.73,138.7,6.4946]
[1767908423482,3.67646522,138.73,138.67,23.84749368]
[1767908423786,1.90461656,138.73,138.67,23.84749368]
[1767908424692,1.90461656,138.73,138.69,6.4951]
[1767908426081,0.05279994,138.73,138.69,6.4951]
[1767908426283,3.67646522,138.73,138.67,30.34309368]
[1767908426473,3.67646522,138.73,138.67,23.84749368]
[1767908427583,3.67646522,138.73,138.68,6.4955]
[1767908427781,1.90461656,138.73,138.68,6.4955]
[1767908429590,0.05279994,138.73,138.69,6.4951]
[1767908429988,1.85181662,138.79,138.71,1.84749368]
[1767908430290,1.85181662,138.79,138.71,85.22]
[1767908430587,1.85181662,138.79,138.73,6.493]
[1767908431490,1.85181662,138.79,138.75,0.05208514]
[1767908431996,1.85181662,138.79,138.73,6.493]
[1767908432289,0.04690204,138.78,138.73,6.493]
[1767908436504,2.08557189,138.78,138.71,93.56119368]
[1767908436699,2.08557189,138.78,138.71,87.06749368]
[1767908437300,2.08557189,138.78,138.71,1.84749368]
[1767908437706,2.08557189,138.78,138.72,6.4936]
[1767908439506,2.08557189,138.78,138.69,109.76158078]
[1767908439507,2.08557189,138.78,138.7,6.4942]
[1767908439811,2.03866985,138.77,138.7,8.43344078]
[1767908440412,0.04619598,138.75,138.7,8.43344078]
[1767908442615,0.04619598,138.75,138.7,1.93924078]
[1767908443213,0.04619598,138.75,138.7,8.58766044]
[1767908443710,2.08486583,138.75,138.7,6.64841966]
[1767908445615,2.03866985,138.74,138.66,10.66942156]
[1767908446214,2.03866985,138.74,138.67,1.93924078]
[1767908446408,0.0487709,138.71,138.68,1.93924078]
[1767908446809,2.03866985,138.78,138.72,1.93924078]
[1767908447013,2.03866985,138.8,138.72,1.93924078]
[1767908448118,2.03866985,138.8,138.75,0.04770184]
[1767908448719,6.4911,138.78,138.75,0.04770184]
[1767908449418,6.4911,138.78,138.72,1.93924078]
[1767908449615,6.54090042,138.78,138.72,1.93924078]
[1767908451622,8.57957027,138.78,138.72,1.93924078]
[1767908451824,2.03866985,138.77,138.71,6.4941]
[1767908452120,2.03866985,138.77,138.7,1.93924078]
[1767908452316,8.53016985,138.77,138.7,1.93924078]
[1767908452522,2.03866985,138.76,138.7,1.93924078]
[1767908453024,0.0519561,138.75,138.7,1.93924078]
[1767908454612,0.0519561,138.75,138.7,8.43374078]
[1767908456424,0.0519561,138.75,138.7,1.93924078]
[1767908462526,8.71535772,138.75,138.69,93.95018078]
[1767908462733,8.71535772,138.75,138.69,85.22]
[1767908463335,8.71535772,138.75,138.68,10.80306341]
[1767908463738,8.71535772,138.75,138.69,2.07288263]
[1767908464433,8.66400162,138.74,138.68,8.73018078]
[1767908464630,2.17110162,138.83,138.72,2.07288263]
[1767908465527,100.933,138.84,138.71,87.99411518]
[1767908465528,6.4902,138.8,138.73,8.56608263]
[1767908465837,2.17110162,138.79,138.72,2.07288263]
[1767908466031,2.17110162,138.79,138.75,0.05355195]
[1767908467537,2.17568667,138.82,138.75,2.1630456]
[1767908468032,2.17568667,138.82,138.75,2.10949365]
[1767908468235,2.17568667,138.82,138.76,6.4917]
[1767908468438,2.17568667,138.82,138.77,0.04848515]
[1767908474340,2.17568667,138.85,138.77,0.04848515]
[1767908474735,2.17568667,138.85,138.76,2.10949365]
[1767908475144,2.17568667,138.85,138.8,0.04847656]
[1767908475741,2.17568667,138.81,138.75,87.30949365]
[1767908476640,2.17568667,138.81,138.75,93.80169365]
[1767908477241,2.17568667,138.83,138.77,2.10949365]
[1767908477444,2.17568667,138.83,138.75,2.10949365]
[1767908478346,2.17568667,138.83,138.77,2.10949365]
[1767908478747,2.17568667,138.85,138.77,2.10949365]
[1767908478948,2.17568667,138.88,138.79,2.10949365]
[1767908479347,6.4891,138.82,138.76,2.10949365]
[1767908480751,8.66478667,138.82,138.76,2.10949365]
[1767908481153,6.4895,138.81,138.76,2.10949365]
[1767908481646,6.4895,138.81,138.75,85.2]